bitfinex-derivatives/quotes_BTCF0:USTF0_20251125
["timestamp","ask_amount","ask_price","bid_price","bid_amount"]
[1764031544525,0.11022429,88287.0,88286.0,0.4401699]
[1764031545334,0.11022429,88287.0,88286.0,0.44236793]
[1764031545837,0.11022429,88287.0,88286.0,0.00236793]
[1764031546322,0.12155489,88287.0,88286.0,0.0001699]
[1764031546527,0.10993,88271.0,88270.0,0.54176549]
[1764031546733,0.11022429,88271.0,88270.0,0.83433083]
[1764031549030,0.11022429,88271.0,88270.0,0.04219803]
[1764031549226,0.1523937,88263.0,88262.0,0.0001699]
[1764031549531,0.51348799,88263.0,88262.0,0.4201699]
[1764031549838,0.51348799,88263.0,88250.0,8.387e-05]
[1764031549839,0.10993,88251.0,88250.0,8.387e-05]
[1764031550135,0.10993,88247.0,88240.0,0.16963269]
[1764031550328,0.11022429,88247.0,88246.0,0.4102833]
[1764031550929,0.11030816,88247.0,88246.0,0.41248133]
[1764031554543,0.11030816,88247.0,88246.0,0.48426133]
[1764031554931,0.11030816,88247.0,88246.0,0.44837133]
[1764031555134,0.11030816,88247.0,88246.0,0.41248133]
[1764031555530,0.11030816,88247.0,88246.0,0.0002833]
[1764031555743,0.10029,88239.0,88238.0,0.0001699]
[1764031555942,0.10058429,88239.0,88238.0,0.0001699]
[1764031556144,0.10058429,88239.0,88238.0,0.4501699]
[1764031556437,0.10058429,88239.0,88238.0,0.4615068]
[1764031558234,0.10058429,88239.0,88238.0,0.4501699]
[1764031560347,0.10058429,88239.0,88238.0,0.45236793]
[1764031561644,0.10058429,88239.0,88238.0,0.40236793]
[1764031562844,0.10058429,88239.0,88238.0,0.00236793]
[1764031564136,0.10058429,88239.0,88238.0,0.41236793]
[1764031564332,0.10058429,88239.0,88238.0,0.0001699]
[1764031564545,0.02976,88221.0,88219.0,0.06458]
[1764031564734,0.10029,88217.0,88216.0,0.0113397]
[1764031564943,0.10029,88212.0,88211.0,0.03448803]
[1764031565140,0.10058429,88212.0,88211.0,0.46229]
[1764031565447,0.10058429,88212.0,88211.0,0.49458]
[1764031565642,0.10058429,88212.0,88211.0,0.03229]
[1764031565643,0.11192449,88212.0,88211.0,0.03229]
[1764031565946,0.11092449,88212.0,88211.0,0.03229]
[1764031566147,0.10992449,88212.0,88211.0,0.03229]
[1764031566349,0.09858429,88212.0,88211.0,0.03229]
[1764031566542,0.09858429,88212.0,88211.0,0.0779204]
[1764031566735,0.09858429,88212.0,88211.0,0.4679204]
[1764031567335,0.09858429,88212.0,88211.0,0.0779204]
[1764031568144,0.09858429,88212.0,88211.0,0.49011843]
[1764031568538,0.09858429,88212.0,88211.0,0.06877803]
[1764031568746,0.10029,88208.0,88207.0,0.0456309]
[1764031569045,0.10058429,88208.0,88207.0,0.44782893]
[1764031569441,0.10058429,88208.0,88207.0,0.48211893]
[1764031570641,0.00029429,88208.0,88207.0,0.48211893]
[1764031572047,0.46060429,88208.0,88207.0,0.00219803]
[1764031572550,0.46060429,88208.0,88207.0,0.46884803]
[1764031572752,0.46060429,88208.0,88207.0,0.49549803]
[1764031574851,0.46060429,88208.0,88207.0,0.05549803]
[1764031575050,0.12982,88207.0,88206.0,0.00028343]
[1764031575249,0.13011429,88207.0,88206.0,0.40028343]
[1764031575450,0.13011429,88207.0,88206.0,0.41162443]
[1764031575645,0.13011429,88207.0,88206.0,0.43827443]
[1764031576043,0.13011429,88207.0,88206.0,0.46492443]
[1764031576347,0.13011429,88207.0,88206.0,0.46712246]
[1764031577149,0.13111429,88207.0,88206.0,0.46712246]
[1764031578650,0.13111429,88207.0,88206.0,0.45578146]
[1764031579754,0.13111429,88207.0,88206.0,0.00028343]
[1764031580154,0.13111429,88207.0,88206.0,0.44388343]
[1764031580354,0.13111429,88207.0,88206.0,0.02388343]
[1764031581057,0.13111429,88207.0,88206.0,0.00028343]
[1764031581251,0.13111429,88207.0,88206.0,0.43748343]
[1764031581643,0.13111429,88207.0,88206.0,0.43968146]
[1764031586261,0.13111429,88207.0,88206.0,0.44608146]
[1764031586846,0.13111429,88207.0,88206.0,0.46968146]
[1764031588560,0.13111429,88207.0,88206.0,0.04968146]
[1764031588762,0.13111429,88207.0,88206.0,0.43968146]
[1764031588961,0.13111429,88207.0,88206.0,0.04968146]
[1764031589263,0.13111429,88207.0,88206.0,0.50968146]
[1764031589463,0.13111429,88207.0,88206.0,0.04968146]
[1764031591066,0.13111429,88207.0,88206.0,0.02388343]
[1764031591359,0.13111429,88207.0,88206.0,0.00028343]
[1764031592565,0.09343,88204.0,88203.0,0.02377001]
[1764031592766,0.09380816,88204.0,88203.0,0.02377001]
[1764031593158,0.09380816,88204.0,88203.0,0.47377001]
[1764031593467,0.09380816,88204.0,88203.0,0.49737001]
[1764031594058,0.09380816,88204.0,88203.0,0.04737001]
[1764031594261,0.09380816,88204.0,88203.0,0.30956804]
[1764031595359,0.09380816,88204.0,88203.0,0.48956804]
[1764031595668,0.09380816,88204.0,88203.0,0.04737001]
[1764031596171,0.09380816,88204.0,88203.0,0.42737001]
[1764031596364,0.09380816,88204.0,88203.0,0.00017001]
[1764031596562,0.1047719,88199.0,88198.0,8.088e-05]
[1764031596761,0.10506619,88199.0,88198.0,0.42008088]
[1764031596956,0.10506619,88199.0,88198.0,8.088e-05]
[1764031597164,0.1047724,88195.0,88194.0,0.10451337]
[1764031597361,0.10506669,88195.0,88194.0,0.12811337]
[1764031597560,0.10506669,88195.0,88194.0,0.55811337]
[1764031597766,0.10506669,88195.0,88194.0,0.4772]
[1764031598168,0.1343333,88188.0,88186.0,0.08108338]
[1764031598368,0.45464068,88187.0,88186.0,0.46017001]
[1764031598772,0.45464068,88187.0,88186.0,0.41017001]
[1764031598978,0.45464068,88187.0,88186.0,0.00017001]
[1764031599473,0.45464068,88187.0,88186.0,0.00117001]
[1764031599772,0.45464068,88187.0,88186.0,0.01570001]
[1764031599975,0.45464068,88187.0,88186.0,0.00117001]
[1764031600176,0.45464068,88187.0,88186.0,0.46117001]
[1764031600669,0.45464068,88187.0,88186.0,0.00117001]
[1764031601174,0.45464068,88187.0,88186.0,0.43117001]
[1764031601370,0.45464068,88187.0,88186.0,0.00117001]
[1764031602166,0.45464068,88187.0,88186.0,0.45508001]
[1764031602565,0.40854068,88187.0,88186.0,0.46118804]
[1764031602766,0.00041068,88187.0,88186.0,0.46118804]
[1764031604068,0.00011639,88187.0,88186.0,0.46118804]
[1764031604262,0.00017001,88196.0,88195.0,0.00782]
[1764031604472,0.0004643,88196.0,88195.0,0.47151847]
[1764031604771,0.0004643,88196.0,88195.0,0.48286087]
[1764031605276,0.00051266,88196.0,88195.0,0.40136043]
[1764031606377,0.00021837,88196.0,88195.0,0.40136043]
[1764031606569,0.3608,88217.0,88207.0,0.0189409]
[1764031606777,0.36109429,88217.0,88216.0,0.01353773]
[1764031607075,0.09098429,88217.0,88216.0,0.02219803]
[1764031607578,0.09098429,88217.0,88216.0,0.01353773]
[1764031607770,0.00029429,88217.0,88216.0,0.32353773]
[1764031608079,0.04399429,88217.0,88216.0,0.32353773]
[1764031608577,0.45178429,88217.0,88216.0,0.00219803]
[1764031609978,0.09069,88210.0,88208.0,0.08165941]
[1764031610179,0.09098429,88209.0,88208.0,0.41236804]
[1764031611080,0.09098429,88209.0,88208.0,0.42370884]
[1764031612377,0.04399429,88209.0,88208.0,0.42370884]
[1764031612582,0.00029429,88209.0,88208.0,0.42370884]
[1764031612883,0.04399429,88209.0,88208.0,0.42370884]
[1764031613079,0.09098429,88209.0,88208.0,0.42370884]
[1764031614376,0.09098429,88209.0,88208.0,0.41236804]
[1764031614771,0.45178429,88209.0,88208.0,0.02236804]
[1764031614975,0.45178429,88209.0,88208.0,0.00236804]
[1764031615175,0.45178429,88209.0,88208.0,0.00017001]
[1764031615886,0.45178429,88209.0,88170.0,0.15230996]
[1764031615887,0.0989526,88194.0,88193.0,0.0814894]
[1764031616085,0.0989532,88189.0,88188.0,0.0814894]
[1764031616386,0.08761,88186.0,88185.0,0.3608]
[1764031616583,0.08790429,88186.0,88185.0,0.77299803]
[1764031616771,0.36109429,88186.0,88181.0,0.0814894]
[1764031616977,0.0989541,88182.0,88181.0,0.41]
[1764031617177,0.09924839,88182.0,88181.0,0.41]
[1764031617479,0.09824839,88182.0,88181.0,0.41]
[1764031617677,0.08690429,88182.0,88181.0,0.42354223]
[1764031618283,0.08690429,88182.0,88181.0,0.06319803]
[1764031618784,0.08690429,88182.0,88181.0,0.42319803]
[1764031619481,0.08690429,88182.0,88181.0,0.42419803]
[1764031619879,0.00029429,88182.0,88181.0,0.42419803]
[1764031620479,0.02567011,88192.0,88191.0,0.0113429]
[1764031620686,0.0259644,88192.0,88191.0,0.40354093]
[1764031621184,0.1135744,88192.0,88191.0,0.40354093]
[1764031621681,0.00017011,88192.0,88191.0,0.40354093]
[1764031622479,0.00017011,88192.0,88191.0,0.50535954]
[1764031622885,0.00017011,88192.0,88191.0,0.40354093]
[1764031625392,0.0259644,88192.0,88191.0,0.40354093]
[1764031625587,0.1135744,88192.0,88191.0,0.49390556]
[1764031625785,0.1135744,88192.0,88191.0,0.39219803]
[1764031626893,0.1135744,88192.0,88191.0,0.09219803]
[1764031627896,0.1135744,88192.0,88191.0,0.43219803]
[1764031628195,0.1135744,88192.0,88191.0,0.08219803]
[1764031628492,0.1135744,88192.0,88191.0,0.00219803]
[1764031628696,0.1135744,88192.0,88191.0,0.46357241]
[1764031629789,0.1135744,88192.0,88191.0,0.38219803]
[1764031631398,0.1135744,88192.0,88191.0,0.39354093]
[1764031632203,0.1135744,88192.0,88191.0,0.38219803]
[1764031636106,0.0695544,88192.0,88191.0,0.38219803]
[1764031636304,0.0259644,88192.0,88191.0,0.38219803]
[1764031636609,0.1104944,88192.0,88191.0,0.38219803]
[1764031638607,0.1104944,88192.0,88191.0,0.56123803]
[1764031640109,0.1104944,88192.0,88191.0,0.12219803]
[1764031640304,0.1212436,88186.0,88185.0,0.10170753]
[1764031640508,0.095874,88183.0,88182.0,0.10170753]
[1764031640709,0.0958749,88176.0,88174.0,0.03464753]
[1764031640908,0.09616919,88176.0,88175.0,0.41017011]
[1764031641206,0.09616919,88176.0,88175.0,0.40236814]
[1764031641405,0.08482429,88176.0,88175.0,0.40236814]
[1764031641717,0.00029429,88176.0,88175.0,0.40236814]
[1764031641902,0.00029429,88176.0,88175.0,0.4838558]
[1764031642298,0.1099,88186.0,88182.0,0.0113441]
[1764031642504,0.08482429,88185.0,88182.0,0.4713441]
[1764031642711,0.08482429,88185.0,88184.0,0.00219803]
[1764031642911,0.08482429,88185.0,88184.0,0.46219803]
[1764031644503,0.04214429,88185.0,88184.0,0.54367899]
[1764031644812,0.04214429,88185.0,88184.0,0.46219803]
[1764031644813,0.00029429,88185.0,88184.0,0.46219803]
[1764031645009,0.08482429,88185.0,88184.0,0.54370186]
[1764031645205,0.08453,88178.0,88176.0,0.08150383]
[1764031645416,0.08453,88176.0,88175.0,0.08167394]
[1764031645608,0.08453,88176.0,88175.0,0.43236814]
[1764031645609,0.08482429,88176.0,88175.0,0.43236814]
[1764031646911,0.08582429,88176.0,88175.0,0.43236814]
[1764031647112,0.09716919,88176.0,88175.0,0.43236814]
[1764031647403,0.09716919,88176.0,88175.0,0.00017011]
[1764031647608,0.08453,88167.0,88166.0,0.00028356]
[1764031647805,0.44562429,88167.0,88166.0,0.00028356]
[1764031650312,0.0958771,88159.0,88158.0,0.0001141]
[1764031650504,0.09617139,88159.0,88158.0,0.4401141]
[1764031650704,0.45697139,88159.0,88158.0,0.4168683]
[1764031651416,0.08453,88149.0,88148.0,0.0113484]
[1764031651616,0.08482429,88149.0,88148.0,0.40354643]
[1764031653006,0.08482429,88149.0,88148.0,0.40454643]
[1764031653910,0.08482429,88149.0,88148.0,0.39419803]
[1764031656209,0.00029429,88149.0,88148.0,0.39419803]
[1764031656516,0.08482429,88149.0,88148.0,0.39419803]
[1764031657019,0.00029429,88149.0,88148.0,0.39419803]
[1764031657417,0.08482429,88149.0,88148.0,0.39419803]
[1764031658016,0.00029429,88149.0,88148.0,0.39419803]
[1764031658217,0.04214429,88149.0,88148.0,0.39419803]
[1764031658416,0.08482429,88149.0,88148.0,0.39419803]
[1764031663019,0.00029429,88149.0,88148.0,0.39419803]
[1764031664924,0.08640429,88149.0,88148.0,0.39419803]
[1764031665818,0.08640429,88149.0,88148.0,0.40554653]
[1764031670924,0.08640429,88149.0,88148.0,0.39419803]
[1764031670925,0.09775259,88149.0,88148.0,0.39419803]
[1764031673326,0.08640429,88149.0,88148.0,0.46419803]
[1764031673727,0.08640429,88149.0,88148.0,0.00419803]
[1764031674232,0.08640429,88149.0,88148.0,0.43419803]
[1764031675225,0.08640429,88149.0,88148.0,0.00419803]
[1764031675436,0.08640429,88149.0,88148.0,0.002]
[1764031676826,0.08640429,88149.0,88148.0,0.392]
[1764031677133,0.08640429,88149.0,88148.0,0.002]
[1764031678430,0.08640429,88149.0,88148.0,0.0133485]
[1764031678630,0.08640429,88149.0,88148.0,0.4633485]
[1764031678831,0.08640429,88149.0,88148.0,0.002]
[1764031681426,0.07878,88134.0,88133.0,0.10179105]
[1764031681633,0.07878,88128.0,88127.0,0.10179105]
[1764031681829,0.07907429,88128.0,88127.0,0.39219803]
[1764031682334,0.07817954,88128.0,88127.0,0.40354923]
[1764031682724,0.07717954,88128.0,88127.0,0.40354923]
[1764031682921,0.07717954,88128.0,88127.0,0.40554923]
[1764031684228,0.07717954,88128.0,88127.0,0.39419803]
[1764031684423,0.07717954,88128.0,88127.0,0.392]
[1764031684725,0.43797954,88128.0,88127.0,0.392]
[1764031685129,0.43797954,88128.0,88127.0,0.002]
[1764031685634,0.0901312,88127.0,88126.0,3.69e-06]
[1764031685838,0.09042549,88127.0,88126.0,3.69e-06]
[1764031686038,0.08942549,88127.0,88126.0,3.69e-06]
[1764031688342,0.08942549,88127.0,88126.0,0.40000369]
[1764031688536,0.08942549,88127.0,88126.0,3.69e-06]
[1764031688537,0.01064549,88127.0,88126.0,3.69e-06]
[1764031689829,0.07907429,88127.0,88126.0,0.39000369]
[1764031690036,0.00029429,88127.0,88126.0,3.69e-06]
[1764031692647,0.07777429,88127.0,88126.0,0.40000369]
[1764031693243,0.00029429,88127.0,88126.0,3.69e-06]
[1764031693744,0.07777429,88127.0,88126.0,0.46000369]
[1764031693940,0.00029429,88127.0,88126.0,3.69e-06]
[1764031697243,0.07777429,88127.0,88126.0,3.69e-06]
[1764031697631,0.00029429,88127.0,88126.0,3.69e-06]
[1764031698243,0.07777429,88127.0,88126.0,0.38000369]
[1764031698445,0.07777429,88127.0,88126.0,0.43000369]
[1764031698846,0.25693429,88127.0,88126.0,3.69e-06]
[1764031699241,0.17945429,88127.0,88126.0,3.69e-06]
[1764031700445,0.42945429,88127.0,88126.0,3.69e-06]
[1764031700652,0.17945429,88127.0,88126.0,3.69e-06]
[1764031701950,0.45945429,88127.0,88126.0,3.69e-06]
[1764031702642,0.17945429,88127.0,88126.0,3.69e-06]
[1764031705254,0.44945429,88127.0,88126.0,3.69e-06]
[1764031705647,0.17945429,88127.0,88126.0,3.69e-06]
[1764031706650,0.45945429,88127.0,88126.0,3.69e-06]
[1764031707047,0.48945429,88127.0,88126.0,3.69e-06]
[1764031707352,0.17945429,88127.0,88126.0,3.69e-06]
[1764031707753,0.43945429,88127.0,88126.0,3.69e-06]
[1764031708055,0.17945429,88127.0,88126.0,3.69e-06]
[1764031709354,0.2055967,88127.0,88126.0,3.69e-06]
[1764031709554,0.4455967,88127.0,88126.0,3.69e-06]
[1764031709755,0.8255967,88127.0,88126.0,3.69e-06]
[1764031710752,0.8265967,88127.0,88126.0,3.69e-06]
[1764031710955,0.4465967,88127.0,88126.0,3.69e-06]
[1764031711156,0.2065967,88127.0,88126.0,3.69e-06]
[1764031711349,0.20670195,88127.0,88126.0,3.69e-06]
[1764031711549,0.20674195,88127.0,88126.0,3.69e-06]
[1764031711956,0.28422195,88127.0,88126.0,3.69e-06]
[1764031712243,0.10402195,88127.0,88126.0,3.69e-06]
[1764031712445,0.20674195,88127.0,88126.0,3.69e-06]
[1764031712650,0.20774195,88127.0,88126.0,3.69e-06]
[1764031713660,0.02854195,88127.0,88126.0,3.69e-06]
[1764031713859,0.24605195,88127.0,88126.0,3.69e-06]
[1764031714052,0.02854195,88127.0,88126.0,3.69e-06]
[1764031714254,0.20774195,88127.0,88126.0,3.69e-06]
[1764031717156,0.10602195,88127.0,88126.0,0.00220172]
[1764031717360,0.00239954,88127.0,88126.0,3.69e-06]
[1764031718757,0.0888329,88114.0,88113.0,0.08137226]
[1764031719054,0.0888332,88111.0,88110.0,0.07581]
[1764031719364,0.08912749,88111.0,88110.0,0.53581]
[1764031719669,0.08912749,88111.0,88110.0,0.07581]
[1764031719967,0.08912749,88111.0,88110.0,0.03793]
[1764031720155,0.08912749,88111.0,88110.0,0.07581]
[1764031720354,0.07748,88092.0,88091.0,0.0871658]
[1764031720558,0.07787954,88092.0,88091.0,0.46936383]
[1764031721353,0.07787954,88092.0,88091.0,0.48800803]
[1764031721964,0.07787954,88092.0,88091.0,0.48581]
[1764031722165,0.07787954,88092.0,88091.0,0.03793]
[1764031722360,0.07787954,88092.0,88091.0,0.03893]
[1764031722558,0.43867954,88092.0,88091.0,0.001]
[1764031723366,0.0738,88087.0,88086.0,0.00028382]
[1764031723663,0.07409429,88087.0,88086.0,0.00028382]
[1764031724273,0.08545059,88087.0,88086.0,0.00028382]
[1764031727078,0.08645059,88087.0,88086.0,0.00028382]
[1764031728575,0.03675,88064.0,88063.0,0.3608]
[1764031728781,0.09563429,88064.0,88063.0,0.82372]
[1764031729177,0.09563429,88064.0,88063.0,0.89372]
[1764031729577,0.09563429,88064.0,88063.0,0.48292]
[1764031729578,0.09577994,88064.0,88063.0,0.48292]
[1764031729974,0.09577994,88064.0,88063.0,0.46292]
[1764031731075,0.00043994,88064.0,88063.0,0.46511803]
[1764031733179,0.00017031,88072.0,88071.0,0.0842784]
[1764031733376,0.00017031,88072.0,88071.0,0.53647643]
[1764031734077,0.00021163,88072.0,88071.0,0.53647643]
[1764031736682,0.07127163,88072.0,88071.0,0.53647643]
[1764031736889,0.09112163,88072.0,88071.0,0.53647643]
[1764031737282,0.09112163,88072.0,88071.0,0.52511803]
[1764031737678,0.09112163,88072.0,88071.0,0.07511803]
[1764031738389,0.09112163,88072.0,88071.0,0.53511803]
[1764031738789,0.03696163,88072.0,88071.0,0.53511803]
[1764031739786,0.00021163,88072.0,88071.0,0.53511803]
[1764031740486,0.09006163,88072.0,88071.0,0.53511803]
[1764031740993,0.00021163,88072.0,88071.0,0.53511803]
[1764031741489,0.39649,88084.0,88083.0,0.07032]
[1764031741685,0.39649,88084.0,88083.0,0.54387493]
[1764031741881,0.4308,88084.0,88083.0,0.54387493]
[1764031742080,0.08985,88064.0,88063.0,0.07049031]
[1764031742287,0.10340733,88064.0,88063.0,0.00017031]
[1764031742685,0.0813615,88047.0,88046.0,0.07060394]
[1764031742984,0.43299803,88047.0,88046.0,0.51133661]
[1764031743185,0.00219803,88047.0,88046.0,0.87213661]
[1764031745191,0.00219803,88047.0,88046.0,0.88349821]
[1764031746084,0.01355953,88047.0,88046.0,0.87213661]
[1764031747693,0.01355953,88047.0,88046.0,0.51133661]
[1764031747694,0.00219803,88047.0,88046.0,0.51133661]
[1764031748981,0.08355953,88047.0,88046.0,0.00028394]
[1764031749290,0.08355953,88047.0,88046.0,0.03513394]
[1764031749590,0.08355953,88047.0,88046.0,0.00028394]
[1764031750393,0.08455953,88047.0,88046.0,0.00028394]
[1764031750792,0.08455953,88047.0,88046.0,0.06998394]
[1764031751395,0.08455953,88047.0,88046.0,0.00028394]
[1764031753289,0.08455953,88047.0,88046.0,3.94e-06]
[1764031755193,0.07319803,88047.0,88046.0,0.51786394]
[1764031755387,0.00319803,88047.0,88046.0,0.51859661]
[1764031756702,0.0113596,88062.0,88057.0,0.06786]
[1764031756997,0.43152803,88058.0,88057.0,0.06859267]
[1764031758012,0.43152803,88058.0,88057.0,0.51859267]
[1764031758201,0.39690803,88058.0,88057.0,0.51859267]
[1764031758389,0.36299803,88058.0,88057.0,0.51859267]
[1764031758589,0.3608,88067.0,88066.0,0.06786]
[1764031758799,0.36299803,88067.0,88066.0,0.43859267]
[1764031759997,0.36399803,88067.0,88066.0,0.43859267]
[1764031761101,0.001,88067.0,88066.0,0.43859267]
[1764031761306,0.00017031,88072.0,88071.0,0.0792184]
[1764031761606,0.00017031,88072.0,88071.0,0.45995107]
[1764031762300,0.08865,88092.0,88091.0,0.06786]
[1764031762606,0.00219803,88092.0,88091.0,0.48994847]
[1764031763503,0.00419803,88092.0,88091.0,0.48994847]
[1764031763713,0.002,88092.0,88091.0,0.48994847]
[1764031764004,0.00017031,88100.0,88099.0,0.0792148]
[1764031764199,0.00236834,88100.0,88099.0,0.52994747]
[1764031765601,0.07089834,88100.0,88099.0,0.51859267]
[1764031765900,0.0798854,88095.0,88094.0,0.06786]
[1764031766102,0.44288343,88095.0,88094.0,0.47859267]
[1764031766304,0.44288343,88095.0,88094.0,0.44859267]
[1764031766693,0.44288343,88095.0,88094.0,0.06859267]
[1764031766893,0.44288343,88095.0,88094.0,0.00073267]
[1764031767098,0.44388343,88095.0,88094.0,0.00073267]
[1764031767600,0.0798867,88084.0,88083.0,0.00017031]
[1764031767801,0.08208473,88084.0,88083.0,0.43876298]
[1764031769007,0.00219803,88084.0,88083.0,0.45953298]
[1764031772511,0.01355473,88084.0,88083.0,0.45953298]
[1764031773906,0.00219803,88084.0,88083.0,0.45953298]
[1764031774096,0.3608,88095.0,88094.0,0.06786]
[1764031774306,0.3608,88095.0,88094.0,0.53994807]
[1764031774501,0.00017031,88100.0,88099.0,0.0792148]
[1764031774702,0.00236834,88100.0,88099.0,0.53994747]
[1764031775613,0.07089834,88100.0,88099.0,0.52859267]
[1764031776004,0.00236834,88100.0,88099.0,0.52859267]
[1764031776514,0.00017031,88100.0,88099.0,0.52859267]
[1764031776717,0.3608,88106.0,88105.0,0.06786]
[1764031776904,0.3608,88106.0,88105.0,0.49994667]
[1764031777514,0.3608,88115.0,88114.0,0.0113528]
[1764031777713,0.36299803,88115.0,88114.0,0.44994547]
[1764031778897,0.36399803,88115.0,88114.0,0.44994547]
[1764031779609,0.39790803,88115.0,88114.0,0.50859267]
[1764031779808,0.43252803,88115.0,88114.0,0.49859267]
[1764031780112,0.43352803,88115.0,88114.0,0.46374267]
[1764031780307,0.0798838,88107.0,88106.0,0.06803031]
[1764031780520,0.44288183,88107.0,88106.0,0.46391298]
[1764031780806,0.44288183,88107.0,88106.0,0.49876298]
[1764031781415,0.44388183,88107.0,88106.0,0.49876298]
[1764031782209,0.44388183,88107.0,88106.0,0.50876298]
[1764031782404,0.44388183,88107.0,88106.0,0.06876298]
[1764031782605,0.44388183,88107.0,88106.0,0.00090298]
[1764031782812,0.44388183,88107.0,88106.0,0.39090298]
[1764031783010,0.44388183,88107.0,88106.0,0.00090298]
[1764031784501,0.44388183,88107.0,88106.0,0.00017031]
[1764031786207,0.44488183,88107.0,88106.0,0.00017031]
[1764031786406,0.44488183,88107.0,88106.0,3.1e-07]
[1764031786811,0.44388183,88107.0,88106.0,3.1e-07]
[1764031787006,0.44488183,88107.0,88106.0,3.1e-07]
[1764031791918,0.44488183,88107.0,88086.0,0.0113565]
[1764031791919,0.03072,88087.0,88086.0,0.0776965]
[1764031792119,0.06623803,88087.0,88086.0,0.53842917]
[1764031792715,0.03291803,88087.0,88086.0,0.53842917]
[1764031793123,0.00219803,88087.0,88086.0,0.53842917]
[1764031793620,0.00017031,88095.0,88094.0,0.0776954]
[1764031793921,0.00236834,88095.0,88094.0,0.50842807]
[1764031794323,0.00236834,88095.0,88094.0,0.51707267]
[1764031794513,0.03308834,88095.0,88094.0,0.51707267]
[1764031796118,0.00336834,88095.0,88094.0,0.51707267]
[1764031800723,0.07225364,88095.0,88094.0,0.51707267]
[1764031801428,0.07225364,88095.0,88094.0,0.45707267]
[1764031801819,0.07225364,88095.0,88094.0,0.06707267]
[1764031802215,0.07225364,88095.0,88094.0,0.07707267]
[1764031802420,0.06089834,88095.0,88094.0,0.50707267]
[1764031802826,0.00336834,88095.0,88094.0,0.50707267]
[1764031807434,0.06089834,88095.0,88094.0,0.50707267]
[1764031808422,0.00336834,88095.0,88094.0,0.50707267]
[1764031809232,0.06089834,88095.0,88094.0,0.50707267]
[1764031810222,0.00336834,88095.0,88094.0,0.50707267]
[1764031811929,0.00117031,88095.0,88094.0,0.50707267]
[1764031812128,0.31385031,88098.0,88097.0,0.05764]
[1764031812436,0.31385031,88098.0,88097.0,0.49837267]
[1764031813040,0.37593834,88098.0,88097.0,0.49837267]
[1764031813236,0.37593834,88098.0,88097.0,0.44073267]
[1764031813431,0.37693834,88098.0,88097.0,0.44073267]
[1764031813632,0.34677834,88098.0,88097.0,0.48221267]
[1764031813833,0.31704834,88098.0,88097.0,0.48221267]
[1764031814229,0.34677834,88098.0,88097.0,0.48221267]
[1764031814429,0.31804834,88098.0,88097.0,0.48221267]
[1764031814639,0.002,88098.0,88097.0,0.48221267]
[1764031815632,0.02990031,88106.0,88105.0,0.052834]
[1764031815842,0.03209834,88106.0,88105.0,0.44356667]
[1764031816037,0.03209834,88106.0,88105.0,0.43221267]
[1764031816433,0.00236834,88106.0,88105.0,0.43221267]
[1764031816727,0.34065171,88107.0,88106.0,0.0528339]
[1764031816942,0.34065171,88107.0,88106.0,0.51356657]
[1764031817327,0.37257974,88107.0,88106.0,0.50221267]
[1764031819940,0.34284974,88107.0,88106.0,0.50221267]
[1764031820238,0.00219803,88107.0,88106.0,0.50221267]
[1764031820941,0.01614,88112.0,88111.0,0.0528332]
[1764031820942,0.07603,88112.0,88111.0,0.0528332]
[1764031821146,0.07822803,88112.0,88111.0,0.45356587]
[1764031822135,0.07922803,88112.0,88111.0,0.45356587]
[1764031822542,0.00319803,88112.0,88111.0,0.45356587]
[1764031823041,0.03292803,88112.0,88111.0,0.45356587]
[1764031823441,0.03392803,88112.0,88111.0,0.45356587]
[1764031823641,0.06408803,88112.0,88111.0,0.45356587]
[1764031824544,0.00419803,88112.0,88111.0,0.45356587]
[1764031824743,0.03392803,88112.0,88111.0,0.45356587]
[1764031825646,0.06408803,88112.0,88111.0,0.45356587]
[1764031826043,0.00419803,88112.0,88111.0,0.45356587]
[1764031826339,0.03392803,88112.0,88111.0,0.45356587]
[1764031828847,0.42488803,88112.0,88111.0,0.44221267]
[1764031829145,0.42488803,88112.0,88111.0,0.00073267]
[1764031829345,0.0712441,88104.0,88103.0,0.02074]
[1764031829544,0.07344213,88104.0,88103.0,0.46073267]
[1764031832639,0.07544213,88104.0,88103.0,0.46073267]
[1764031833348,0.07544213,88104.0,88103.0,0.00073267]
[1764031833540,0.0712445,88101.0,88099.0,0.08159345]
[1764031833740,0.06208803,88100.0,88099.0,0.49232612]
[1764031834140,0.06208803,88100.0,88099.0,0.41073267]
[1764031834844,0.06208803,88100.0,88099.0,0.43147267]
[1764031835047,0.06208803,88100.0,88099.0,0.41073267]
[1764031835844,0.06208803,88100.0,88099.0,0.43147267]
[1764031836450,0.06308803,88100.0,88099.0,0.43147267]
[1764031836850,0.06308803,88100.0,88099.0,0.45221267]
[1764031837243,0.06308803,88100.0,88099.0,0.41073267]
[1764031837842,0.06308803,88100.0,88099.0,0.43147267]
[1764031838046,0.06308803,88100.0,88099.0,0.45221267]
[1764031842056,0.03292803,88100.0,88099.0,0.45221267]
[1764031842445,0.05962803,88100.0,88099.0,0.45221267]
[1764031842651,0.06062803,88100.0,88099.0,0.45221267]
[1764031843856,0.05962803,88100.0,88099.0,0.45221267]
[1764031846055,0.06062803,88100.0,88099.0,0.45221267]
[1764031846857,0.42142803,88100.0,88099.0,0.45221267]
[1764031848957,0.36399803,88100.0,88099.0,0.45221267]
[1764031849256,0.00319803,88100.0,88099.0,0.45221267]
[1764031849653,0.02952803,88100.0,88099.0,0.45221267]
[1764031849849,0.05722803,88100.0,88099.0,0.45221267]
[1764031853061,0.00319803,88100.0,88099.0,0.45221267]
[1764031853452,0.02952803,88100.0,88099.0,0.45221267]
[1764031853752,0.04088273,88100.0,88099.0,0.45221267]
[1764031853950,0.06858273,88100.0,88099.0,0.45221267]
[1764031856460,0.05722803,88100.0,88099.0,0.46356747]
[1764031856663,0.02952803,88100.0,88099.0,0.46356747]
[1764031856956,0.05762803,88100.0,88099.0,0.46356747]
[1764031857555,0.05762803,88100.0,88099.0,0.54516092]
[1764031858364,0.05762803,88100.0,88099.0,0.46356747]
[1764031858845,0.05762803,88100.0,88099.0,0.45221267]
[1764031859362,0.03064803,88100.0,88099.0,0.45221267]
[1764031859562,0.00319803,88100.0,88099.0,0.45221267]
[1764031861060,0.001,88100.0,88099.0,0.45221267]
[1764031861463,0.06898273,88100.0,88099.0,0.00073267]
[1764031861654,0.06898273,88100.0,88099.0,0.45]
[1764031861854,0.06898273,88100.0,88099.0,0.45073267]
[1764031862056,0.06798273,88100.0,88099.0,0.00073267]
[1764031862361,0.06788831,88100.0,88099.0,0.00073267]
[1764031862958,0.06888831,88100.0,88099.0,0.00073267]
[1764031863959,0.06988831,88100.0,88099.0,0.00073267]
[1764031865265,0.05443,88098.0,88097.0,0.00017031]
[1764031865466,0.05653361,88098.0,88097.0,0.00017031]
[1764031866462,0.05653361,88098.0,88084.0,0.08173572]
[1764031866463,0.0657865,88086.0,88084.0,0.08173572]
[1764031866767,0.01652,88088.0,88077.0,0.08173572]
[1764031866768,0.0657874,88079.0,88077.0,0.08173572]
[1764031867072,0.0657874,88079.0,88078.0,0.03122709]
[1764031867461,0.06789101,88079.0,88078.0,0.03122709]
[1764031867661,0.05653361,88079.0,88078.0,0.46122709]